[Event "*** Titled Tuesday Blitz"]
[Site "Chess.com"]
[Date "2021.04.27"]
[Round "7"]
[White "mbojan"]
[Black "profofchess"]
[Result "1-0"]
[WhiteElo "2646"]
[BlackElo "2480"]
[TimeControl "180+1"]
[EndTime "11:17:42 PDT"]
[Termination "mbojan won on time"]

1. g3 {[%clk 0:03:00.9]} 1... d5 {[%clk 0:02:59.9]} 2. Bg2 {[%clk 0:03:01.4]}
2... c6 {[%clk 0:02:58.2]} 3. d3 {[%clk 0:03:01.8]} 3... Nf6 {[%clk 0:02:58.8]}
4. e3 {[%clk 0:03:02.4]} 4... g6 {[%clk 0:02:59]} 5. Ne2 {[%clk 0:03:02.8]} 5...
Bg7 {[%clk 0:02:59.3]} 6. h3 {[%clk 0:03:03.6]} 6... O-O {[%clk 0:02:59.5]} 7.
Nd2 {[%clk 0:03:02.9]} 7... a5 {[%clk 0:03:00]} 8. Rb1 {[%clk 0:03:02.3]} 8...
a4 {[%clk 0:03:00.3]} 9. b3 {[%clk 0:03:01.3]} 9... Na6 {[%clk 0:02:58.9]} 10.
b4 {[%clk 0:03:00.2]} 10... e5 {[%clk 0:02:56.6]} 11. a3 {[%clk 0:03:00.3]}
11... Nc7 {[%clk 0:02:50.3]} 12. Bb2 {[%clk 0:02:59.9]} 12... Re8 {[%clk
0:02:43]} 13. Nf3 {[%clk 0:03:00.2]} 13... e4 {[%clk 0:02:10]} 14. Nfd4 {[%clk
0:03:00.3]} 14... exd3 {[%clk 0:02:00.9]} 15. cxd3 {[%clk 0:02:59.2]} 15... Ne6
{[%clk 0:02:00.3]} 16. O-O {[%clk 0:02:55.9]} 16... Ng5 {[%clk 0:01:52]} 17. Nf4
{[%clk 0:02:55.8]} 17... Ne6 {[%clk 0:01:45.5]} 18. Nfxe6 {[%clk 0:02:45.8]}
18... fxe6 {[%clk 0:01:45.1]} 19. Nf3 {[%clk 0:02:45.3]} 19... Qe7 {[%clk
0:01:40.6]} 20. Kh2 {[%clk 0:02:43.8]} 20... Nd7 {[%clk 0:01:36.4]} 21. Bxg7
{[%clk 0:02:43]} 21... Qxg7 {[%clk 0:01:37.3]} 22. d4 {[%clk 0:02:39]} 22... e5
{[%clk 0:01:22.9]} 23. dxe5 {[%clk 0:02:18.2]} 23... Nxe5 {[%clk 0:01:23.8]} 24.
Nxe5 {[%clk 0:02:18.5]} 24... Qxe5 {[%clk 0:01:23.5]} 25. b5 {[%clk 0:02:16.9]}
25... Bf5 {[%clk 0:01:18.2]} 26. Rb4 {[%clk 0:02:16.5]} 26... cxb5 {[%clk
0:01:00.7]} 27. Rxb5 {[%clk 0:02:07.1]} 27... Be4 {[%clk 0:00:57.3]} 28. Bxe4
{[%clk 0:02:04.4]} 28... Qxe4 {[%clk 0:00:56.9]} 29. Qxd5+ {[%clk 0:02:04.5]}
29... Qxd5 {[%clk 0:00:56.4]} 30. Rxd5 {[%clk 0:02:05.4]} 30... Red8 {[%clk
0:00:26.1]} 31. Rxd8+ {[%clk 0:01:59.6]} 31... Rxd8 {[%clk 0:00:27]} 32. Rb1
{[%clk 0:02:00]} 32... Rd3 {[%clk 0:00:25.5]} 33. Rxb7 {[%clk 0:01:59.8]} 33...
Rxa3 {[%clk 0:00:25.6]} 34. g4 {[%clk 0:01:57.9]} 34... g5 {[%clk 0:00:21.7]}
35. Ra7 {[%clk 0:01:57.3]} 35... h6 {[%clk 0:00:20.7]} 36. Kg3 {[%clk
0:01:57.2]} 36... Ra2 {[%clk 0:00:19.9]} 37. Kf3 {[%clk 0:01:43.2]} 37... a3
{[%clk 0:00:19.9]} 38. Kg3 {[%clk 0:01:39.7]} 38... Kf8 {[%clk 0:00:19.5]} 39.
f4 {[%clk 0:01:30.2]} 39... Ra1 {[%clk 0:00:16.4]} 40. f5 {[%clk 0:01:19]} 40...
a2 {[%clk 0:00:11.9]} 41. Kg2 {[%clk 0:01:19.2]} 41... Re1 {[%clk 0:00:08.6]}
42. Rxa2 {[%clk 0:01:18.8]} 42... Rxe3 {[%clk 0:00:08.8]} 43. Ra7 {[%clk
0:01:18.8]} 43... Kg8 {[%clk 0:00:08.3]} 44. Ra2 {[%clk 0:01:12.4]} 44... Kg7
{[%clk 0:00:07.4]} 45. Rf2 {[%clk 0:01:13]} 45... Rb3 {[%clk 0:00:06.5]} 46. Rf3
{[%clk 0:01:13.2]} 46... Rb2+ {[%clk 0:00:06.9]} 47. Kg3 {[%clk 0:01:13.7]}
47... Kf6 {[%clk 0:00:07]} 48. Re3 {[%clk 0:01:14.3]} 48... Rb6 {[%clk
0:00:06.8]} 49. Kf3 {[%clk 0:01:14.3]} 49... Ra6 {[%clk 0:00:06.8]} 50. Ke4
{[%clk 0:01:14.4]} 50... Ra4+ {[%clk 0:00:06.9]} 51. Kd5 {[%clk 0:01:14.9]}
51... Ra5+ {[%clk 0:00:07.2]} 52. Kc6 {[%clk 0:01:15]} 52... Ra6+ {[%clk
0:00:07.1]} 53. Kb7 {[%clk 0:01:15.2]} 53... Rd6 {[%clk 0:00:07.1]} 54. Kc7
{[%clk 0:01:15.3]} 54... Ra6 {[%clk 0:00:07]} 55. Kc8 {[%clk 0:01:15.4]} 55...
Ra7 {[%clk 0:00:06.9]} 56. Re6+ {[%clk 0:01:13.8]} 56... Kg7 {[%clk 0:00:07.2]}
57. Re3 {[%clk 0:00:45.4]} 57... Kf7 {[%clk 0:00:05.7]} 58. Rd3 {[%clk
0:00:38.5]} 58... Ra8+ {[%clk 0:00:04.8]} 59. Kd7 {[%clk 0:00:37.5]} 59... Ra7+
{[%clk 0:00:04.7]} 60. Kc6 {[%clk 0:00:37.9]} 60... Ra6+ {[%clk 0:00:04.6]} 61.
Kd5 {[%clk 0:00:37.7]} 61... Ra5+ {[%clk 0:00:04.8]} 62. Ke4 {[%clk 0:00:38]}
62... Ra4+ {[%clk 0:00:04.9]} 63. Ke5 {[%clk 0:00:38.6]} 63... Ra5+ {[%clk
0:00:04.1]} 64. Rd5 {[%clk 0:00:38.6]} 64... Ra3 {[%clk 0:00:04.6]} 65. Rd7+
{[%clk 0:00:38.5]} 65... Ke8 {[%clk 0:00:04.3]} 66. Rh7 {[%clk 0:00:38.1]} 66...
Rxh3 {[%clk 0:00:04.2]} 67. Ke6 {[%clk 0:00:36.9]} 67... Re3+ {[%clk 0:00:03]}
68. Kf6 {[%clk 0:00:37.4]} 68... Re4 {[%clk 0:00:03.1]} 69. Rxh6 {[%clk
0:00:34.7]} 69... Rxg4 {[%clk 0:00:03.2]} 70. Rh8+ {[%clk 0:00:35.4]} 70... Kd7
{[%clk 0:00:03.2]} 71. Kg6 {[%clk 0:00:35.2]} 71... Rg1 {[%clk 0:00:01.9]} 72.
f6 {[%clk 0:00:35.5]} 1-0

[Event "*** Titled Tuesday Blitz"]
[Site "Chess.com"]
[Date "2021.04.27"]
[Round "7"]
[White "anon102030"]
[Black "alexrustemov"]
[Result "0-1"]
[WhiteElo "2743"]
[BlackElo "2613"]
[TimeControl "180+1"]
[EndTime "11:17:43 PDT"]
[Termination "alexrustemov won by checkmate"]

1. e4 {[%clk 0:02:50.4]} 1... e6 {[%clk 0:02:59.6]} 2. d3 {[%clk 0:02:50.4]}
2... d5 {[%clk 0:03:00.2]} 3. Nd2 {[%clk 0:02:51.1]} 3... c5 {[%clk 0:03:00.6]}
4. g3 {[%clk 0:02:51.2]} 4... Nc6 {[%clk 0:03:01.2]} 5. Bg2 {[%clk 0:02:50.9]}
5... g6 {[%clk 0:03:01.7]} 6. Ngf3 {[%clk 0:02:50.1]} 6... Bg7 {[%clk
0:03:02.2]} 7. O-O {[%clk 0:02:50.8]} 7... Nge7 {[%clk 0:03:02.7]} 8. Rb1 {[%clk
0:02:49.8]} 8... d4 {[%clk 0:02:59.7]} 9. Nh4 {[%clk 0:02:47.8]} 9... e5 {[%clk
0:02:57.4]} 10. f4 {[%clk 0:02:47.2]} 10... exf4 {[%clk 0:02:54.5]} 11. gxf4
{[%clk 0:02:48.1]} 11... O-O {[%clk 0:02:28.7]} 12. Nb3 {[%clk 0:02:38.3]} 12...
b6 {[%clk 0:02:26.2]} 13. f5 {[%clk 0:02:34]} 13... Qd6 {[%clk 0:02:22.5]} 14.
Bf4 {[%clk 0:02:20.5]} 14... Be5 {[%clk 0:02:09.2]} 15. Bxe5 {[%clk 0:02:10.5]}
15... Nxe5 {[%clk 0:02:08.8]} 16. f6 {[%clk 0:02:10.3]} 16... N7c6 {[%clk
0:02:08.2]} 17. Qd2 {[%clk 0:02:04.6]} 17... Re8 {[%clk 0:02:05.5]} 18. Qf4
{[%clk 0:01:49.2]} 18... Be6 {[%clk 0:02:01.3]} 19. Kh1 {[%clk 0:01:39.1]} 19...
Qf8 {[%clk 0:02:00.7]} 20. Qg3 {[%clk 0:01:35]} 20... Kh8 {[%clk 0:01:39.2]} 21.
a3 {[%clk 0:01:27]} 21... Bxb3 {[%clk 0:01:36.9]} 22. cxb3 {[%clk 0:01:26.5]}
22... Qh6 {[%clk 0:01:37.5]} 23. Rbe1 {[%clk 0:01:05.9]} 23... Rad8 {[%clk
0:01:35.6]} 24. Bh3 {[%clk 0:01:03.3]} 24... a5 {[%clk 0:01:32.5]} 25. Re2
{[%clk 0:01:01.4]} 25... Rd6 {[%clk 0:01:26]} 26. Ng2 {[%clk 0:00:59.9]} 26...
b5 {[%clk 0:01:13.1]} 27. Rc2 {[%clk 0:00:48]} 27... c4 {[%clk 0:01:12.3]} 28.
bxc4 {[%clk 0:00:46.2]} 28... bxc4 {[%clk 0:01:13.2]} 29. dxc4 {[%clk
0:00:44.1]} 29... d3 {[%clk 0:01:13.2]} 30. Rc3 {[%clk 0:00:42]} 30... d2 {[%clk
0:01:11.5]} 31. Rd1 {[%clk 0:00:42]} 31... Qh5 {[%clk 0:01:09.5]} 32. Ne3 {[%clk
0:00:35.7]} 32... Red8 {[%clk 0:01:06.5]} 33. Bg4 {[%clk 0:00:32.3]} 33... Nxg4
{[%clk 0:00:52.4]} 34. Qxg4 {[%clk 0:00:33.2]} 34... Qxg4 {[%clk 0:00:39.1]} 35.
Nxg4 {[%clk 0:00:34.1]} 35... h5 {[%clk 0:00:36.8]} 36. Ne3 {[%clk 0:00:30.3]}
36... Rxf6 {[%clk 0:00:30.1]} 37. Kg2 {[%clk 0:00:21.7]} 37... Rd4 {[%clk
0:00:25.9]} 38. Rc2 {[%clk 0:00:16.1]} 38... Rxe4 {[%clk 0:00:25.2]} 39. Nd5
{[%clk 0:00:16.2]} 39... Re2+ {[%clk 0:00:25.5]} 40. Kg3 {[%clk 0:00:09.8]}
40... h4+ {[%clk 0:00:21.1]} 41. Kh3 {[%clk 0:00:07.9]} 41... Rff2 {[%clk
0:00:21.3]} 42. Kxh4 {[%clk 0:00:04.9]} 42... Rxh2+ {[%clk 0:00:18.8]} 43. Kg5
{[%clk 0:00:05.3]} 43... Kg7 {[%clk 0:00:17.8]} 44. Nf4 {[%clk 0:00:04.2]} 44...
Ref2 {[%clk 0:00:15]} 45. Kg4 {[%clk 0:00:03.6]} 45... Nd4 {[%clk 0:00:14.2]}
46. Kg3 {[%clk 0:00:04.5]} 46... Nxc2 {[%clk 0:00:12.5]} 47. Nd3 {[%clk
0:00:02.5]} 47... Rfg2+ {[%clk 0:00:11.6]} 48. Kf3 {[%clk 0:00:02.7]} 48... Nd4+
{[%clk 0:00:10.3]} 49. Ke3 {[%clk 0:00:03.6]} 49... Nb3 {[%clk 0:00:10.7]} 50.
Nf4 {[%clk 0:00:03]} 50... Rg3+ {[%clk 0:00:10.8]} 51. Ke4 {[%clk 0:00:03.1]}
51... Rh4 {[%clk 0:00:11.4]} 52. Ke5 {[%clk 0:00:02.5]} 52... Re3+ {[%clk
0:00:11.2]} 53. Kd6 {[%clk 0:00:01.9]} 53... Rxf4 {[%clk 0:00:11.7]} 54. c5
{[%clk 0:00:02.8]} 54... Rd4+ {[%clk 0:00:11.3]} 55. Kc6 {[%clk 0:00:03.7]}
55... Re1 {[%clk 0:00:11.8]} 56. Rxd2 {[%clk 0:00:03.5]} 56... Rxd2 {[%clk
0:00:11.4]} 57. Kb5 {[%clk 0:00:04.4]} 57... Rxb2 {[%clk 0:00:11.6]} 58. c6
{[%clk 0:00:05.3]} 58... Rc1 {[%clk 0:00:11.5]} 59. c7 {[%clk 0:00:05.1]} 59...
Nd2+ {[%clk 0:00:11.7]} 60. Ka4 {[%clk 0:00:05]} 60... Rxc7 {[%clk 0:00:12.2]}
61. Kxa5 {[%clk 0:00:03.6]} 61... Ra7# {[%clk 0:00:13.1]} 0-1

[Event "*** Titled Tuesday Blitz"]
[Site "Chess.com"]
[Date "2021.04.27"]
[Round "7"]
[White "malakismayil"]
[Black "Vladyslav_Puchka"]
[Result "0-1"]
[WhiteElo "2238"]
[BlackElo "2119"]
[TimeControl "180+1"]
[EndTime "11:17:43 PDT"]
[Termination "Vladyslav_Puchka won on time"]

1. e4 {[%clk 0:03:00.9]} 1... d5 {[%clk 0:02:59.8]} 2. exd5 {[%clk 0:02:58.1]}
2... Qxd5 {[%clk 0:03:00.7]} 3. Nc3 {[%clk 0:02:58.1]} 3... Qd8 {[%clk
0:03:00.7]} 4. Bc4 {[%clk 0:02:57.7]} 4... Nf6 {[%clk 0:03:00.9]} 5. d3 {[%clk
0:02:57.7]} 5... a6 {[%clk 0:02:59.7]} 6. Nf3 {[%clk 0:02:57.1]} 6... b5 {[%clk
0:02:59.7]} 7. Bb3 {[%clk 0:02:53.3]} 7... e6 {[%clk 0:02:59.2]} 8. Qe2 {[%clk
0:02:52.4]} 8... Bb7 {[%clk 0:02:59.4]} 9. Bg5 {[%clk 0:02:52.2]} 9... Nbd7
{[%clk 0:02:58.9]} 10. a4 {[%clk 0:02:41.1]} 10... b4 {[%clk 0:02:57.6]} 11. Ne4
{[%clk 0:02:33.4]} 11... Be7 {[%clk 0:02:52.2]} 12. Ned2 {[%clk 0:02:21.4]}
12... h6 {[%clk 0:02:46.1]} 13. Bf4 {[%clk 0:02:19]} 13... Nb6 {[%clk
0:02:40.8]} 14. Be5 {[%clk 0:02:02]} 14... O-O {[%clk 0:02:37.7]} 15. O-O {[%clk
0:01:59.4]} 15... Bd6 {[%clk 0:02:34.2]} 16. d4 {[%clk 0:01:50.3]} 16... c5
{[%clk 0:02:23.3]} 17. a5 {[%clk 0:01:38]} 17... Nbd5 {[%clk 0:02:06.4]} 18. Nc4
{[%clk 0:01:30.7]} 18... Bxe5 {[%clk 0:01:55.7]} 19. dxe5 {[%clk 0:01:31.6]}
19... Nd7 {[%clk 0:01:55.5]} 20. Rad1 {[%clk 0:01:19.8]} 20... Qc7 {[%clk
0:01:54.5]} 21. Rfe1 {[%clk 0:01:08]} 21... Bc6 {[%clk 0:01:51.8]} 22. Nd6
{[%clk 0:01:03.4]} 22... Qxa5 {[%clk 0:01:44.8]} 23. Ra1 {[%clk 0:00:53.3]}
23... Qb6 {[%clk 0:01:44.1]} 24. Bc4 {[%clk 0:00:51.8]} 24... a5 {[%clk
0:01:39.1]} 25. Qe4 {[%clk 0:00:43.2]} 25... Ne7 {[%clk 0:01:13.4]} 26. Qg4
{[%clk 0:00:37.9]} 26... Bd5 {[%clk 0:01:08]} 27. Bxd5 {[%clk 0:00:27]} 27...
Nxd5 {[%clk 0:01:08.9]} 28. Ne4 {[%clk 0:00:25.2]} 28... a4 {[%clk 0:00:59.7]}
29. Rad1 {[%clk 0:00:23.7]} 29... Kh7 {[%clk 0:00:47.7]} 30. Ng3 {[%clk
0:00:15]} 30... a3 {[%clk 0:00:37.5]} 31. bxa3 {[%clk 0:00:13.4]} 31... bxa3
{[%clk 0:00:36.9]} 32. Rxd5 {[%clk 0:00:10]} 32... exd5 {[%clk 0:00:35.1]} 33.
Qxd7 {[%clk 0:00:10.3]} 33... Qe6 {[%clk 0:00:32.8]} 34. Qb5 {[%clk 0:00:07.7]}
34... a2 {[%clk 0:00:31.7]} 35. Ra1 {[%clk 0:00:06.5]} 35... Rfb8 {[%clk
0:00:30]} 36. Qd3+ {[%clk 0:00:06.5]} 36... g6 {[%clk 0:00:28]} 37. Qd1 {[%clk
0:00:05]} 37... Qb6 {[%clk 0:00:19.3]} 38. Nd2 {[%clk 0:00:04.2]} 38... Qb2
{[%clk 0:00:17.2]} 39. h4 {[%clk 0:00:02.3]} 39... Qxe5 {[%clk 0:00:16.9]} 40.
Qc1 {[%clk 0:00:01.3]} 40... c4 {[%clk 0:00:16.8]} 41. Rxa2 {[%clk 0:00:01.2]}
41... Rxa2 {[%clk 0:00:16.3]} 42. Nf3 {[%clk 0:00:01.8]} 42... Qa1 {[%clk
0:00:14.9]} 43. Qxa1 {[%clk 0:00:02.2]} 43... Rxa1+ {[%clk 0:00:15.8]} 44. Kh2
{[%clk 0:00:02.5]} 44... Ra2 {[%clk 0:00:16]} 45. Ne5 {[%clk 0:00:02.8]} 45...
Kg7 {[%clk 0:00:16.1]} 46. c3 {[%clk 0:00:02]} 46... Ra3 {[%clk 0:00:15.4]} 47.
h5 {[%clk 0:00:02.2]} 47... Rxc3 {[%clk 0:00:14.7]} 48. Nc6 {[%clk 0:00:02.7]}
48... Rb2 {[%clk 0:00:13.3]} 49. Ne7 {[%clk 0:00:02.4]} 49... Rxf2 {[%clk
0:00:11.8]} 50. Nxd5 {[%clk 0:00:02.3]} 50... Rcc2 {[%clk 0:00:11.7]} 51. Ne3
{[%clk 0:00:02.6]} 51... Ra2 {[%clk 0:00:10]} 52. hxg6 {[%clk 0:00:02.8]} 52...
fxg6 {[%clk 0:00:10]} 53. Kh3 {[%clk 0:00:03.1]} 53... c3 {[%clk 0:00:08.5]} 54.
Ng4 {[%clk 0:00:03.1]} 54... Rxg2 {[%clk 0:00:07.3]} 55. Ne4 {[%clk 0:00:02]}
55... Rxg4 {[%clk 0:00:07.5]} 56. Kxg4 {[%clk 0:00:01.2]} 56... c2 {[%clk
0:00:08]} 0-1

[Event "*** Titled Tuesday Blitz"]
[Site "Chess.com"]
[Date "2021.04.27"]
[Round "7"]
[White "laboratorio25"]
[Black "Leonid_Starozhilov"]
[Result "0-1"]
[WhiteElo "2540"]
[BlackElo "2678"]
[TimeControl "180+1"]
[EndTime "11:17:49 PDT"]
[Termination "Leonid_Starozhilov won by resignation"]

1. e4 {[%clk 0:03:00.9]} 1... g6 {[%clk 0:02:59.7]} 2. d4 {[%clk 0:03:00.7]}
2... Bg7 {[%clk 0:02:59.7]} 3. Nc3 {[%clk 0:03:01.2]} 3... d6 {[%clk 0:02:59.7]}
4. Nf3 {[%clk 0:02:59.3]} 4... Nf6 {[%clk 0:02:58]} 5. h3 {[%clk 0:02:56.8]}
5... O-O {[%clk 0:02:57.6]} 6. Bd3 {[%clk 0:02:55.4]} 6... Nc6 {[%clk 0:02:57]}
7. O-O {[%clk 0:02:55.3]} 7... e5 {[%clk 0:02:56.7]} 8. d5 {[%clk 0:02:51.3]}
8... Ne7 {[%clk 0:02:53.4]} 9. Bg5 {[%clk 0:02:50.1]} 9... h6 {[%clk 0:02:48]}
10. Be3 {[%clk 0:02:48.6]} 10... c6 {[%clk 0:02:46.3]} 11. dxc6 {[%clk
0:02:47.6]} 11... bxc6 {[%clk 0:02:47.2]} 12. Qd2 {[%clk 0:02:47.9]} 12... Kh7
{[%clk 0:02:47.2]} 13. Rad1 {[%clk 0:02:46.9]} 13... Be6 {[%clk 0:02:19.2]} 14.
Be2 {[%clk 0:02:25.8]} 14... d5 {[%clk 0:02:03.2]} 15. Nxe5 {[%clk 0:02:02.7]}
15... Nxe4 {[%clk 0:02:03.1]} 16. Nxe4 {[%clk 0:02:00.4]} 16... Bxe5 {[%clk
0:02:00.6]} 17. Nc5 {[%clk 0:01:48.1]} 17... Nf5 {[%clk 0:01:58.4]} 18. Nxe6
{[%clk 0:01:35.5]} 18... fxe6 {[%clk 0:01:59.3]} 19. Bf4 {[%clk 0:01:32.7]}
19... Bg7 {[%clk 0:01:37.3]} 20. c3 {[%clk 0:01:26.4]} 20... e5 {[%clk
0:01:37.2]} 21. Bh2 {[%clk 0:01:25.9]} 21... Qb6 {[%clk 0:01:22.8]} 22. Bg4
{[%clk 0:01:21.9]} 22... Rae8 {[%clk 0:01:17.6]} 23. Bxf5 {[%clk 0:01:21]} 23...
gxf5 {[%clk 0:01:17.4]} 24. Kh1 {[%clk 0:01:17.9]} 24... e4 {[%clk 0:01:04.3]}
25. Bf4 {[%clk 0:01:17.2]} 25... Rd8 {[%clk 0:01:01.8]} 26. Be3 {[%clk
0:01:11.1]} 26... c5 {[%clk 0:00:54.9]} 27. f3 {[%clk 0:00:46.1]} 27... d4
{[%clk 0:00:51.6]} 28. cxd4 {[%clk 0:00:42.1]} 28... cxd4 {[%clk 0:00:52.5]} 29.
Bg1 {[%clk 0:00:42.4]} 29... Qb7 {[%clk 0:00:43.1]} 30. Qf4 {[%clk 0:00:34.5]}
30... Qd5 {[%clk 0:00:35.9]} 31. Bxd4 {[%clk 0:00:20.2]} 31... Bxd4 {[%clk
0:00:33.8]} 32. fxe4 {[%clk 0:00:18.3]} 32... Qe5 {[%clk 0:00:28.6]} 33. Qxe5
{[%clk 0:00:12.9]} 33... Bxe5 {[%clk 0:00:29.5]} 34. Rxd8 {[%clk 0:00:13.2]}
34... Rxd8 {[%clk 0:00:29.1]} 35. exf5 {[%clk 0:00:12.7]} 35... Bxb2 {[%clk
0:00:28.2]} 36. g4 {[%clk 0:00:10.7]} 36... Rd3 {[%clk 0:00:22.8]} 37. Kg2
{[%clk 0:00:08.9]} 37... Be5 {[%clk 0:00:17.2]} 38. Rf3 {[%clk 0:00:07.2]} 38...
Rd2+ {[%clk 0:00:15.5]} 39. Rf2 {[%clk 0:00:06.8]} 39... Rxf2+ {[%clk 0:00:13]}
40. Kxf2 {[%clk 0:00:07.7]} 40... Kg7 {[%clk 0:00:11.6]} 41. Kf3 {[%clk
0:00:08.1]} 41... Bf6 {[%clk 0:00:10.8]} 42. Ke4 {[%clk 0:00:08.3]} 42... Kf7
{[%clk 0:00:09.5]} 43. Kd5 {[%clk 0:00:08.6]} 43... Bh4 {[%clk 0:00:08.6]} 44.
Kc6 {[%clk 0:00:07.8]} 44... Kf6 {[%clk 0:00:09.1]} 45. Kb7 {[%clk 0:00:08.1]}
45... Bf2 {[%clk 0:00:09.3]} 46. a4 {[%clk 0:00:06.9]} 46... Bb6 {[%clk
0:00:08.6]} 47. Ka6 {[%clk 0:00:04.7]} 47... Be3 {[%clk 0:00:07.6]} 48. a5
{[%clk 0:00:04.8]} 48... Kg5 {[%clk 0:00:06.2]} 49. Kb7 {[%clk 0:00:04.3]} 49...
h5 {[%clk 0:00:06.2]} 50. gxh5 {[%clk 0:00:04.2]} 50... Kxf5 {[%clk 0:00:06.4]}
51. h6 {[%clk 0:00:04.1]} 51... Kg6 {[%clk 0:00:06.6]} 52. Kc6 {[%clk 0:00:02]}
52... Kxh6 {[%clk 0:00:07]} 53. Kd5 {[%clk 0:00:02.3]} 53... Kh5 {[%clk
0:00:07.6]} 54. Ke4 {[%clk 0:00:02.8]} 54... Bg1 {[%clk 0:00:08]} 55. Kf3 {[%clk
0:00:03.2]} 55... Kh4 {[%clk 0:00:08.4]} 56. Kg2 {[%clk 0:00:03.7]} 56... Bc5
{[%clk 0:00:08.9]} 57. a6 {[%clk 0:00:04]} 57... Bd6 {[%clk 0:00:09.1]} 58. Kf3
{[%clk 0:00:04.5]} 58... Kxh3 {[%clk 0:00:09.5]} 59. Ke4 {[%clk 0:00:05.4]}
59... Bc5 {[%clk 0:00:09.7]} 60. Kd5 {[%clk 0:00:06.3]} 60... Bb6 {[%clk
0:00:10]} 61. Kc6 {[%clk 0:00:06.8]} 61... Kg4 {[%clk 0:00:10.5]} 62. Kb5 {[%clk
0:00:07.5]} 62... Kf4 {[%clk 0:00:11]} 63. Ka4 {[%clk 0:00:08.1]} 63... Ke4
{[%clk 0:00:11.5]} 64. Kb5 {[%clk 0:00:09]} 64... Kd5 {[%clk 0:00:11.7]} 65. Ka4
{[%clk 0:00:09.9]} 65... Kc6 {[%clk 0:00:12]} 66. Kb4 {[%clk 0:00:10.1]} 66...
Bd8 {[%clk 0:00:12.3]} 67. Kc4 {[%clk 0:00:10.4]} 67... Kb6 {[%clk 0:00:12.6]}
0-1

[Event "*** Titled Tuesday Blitz"]
[Site "Chess.com"]
[Date "2021.04.27"]
[Round "7"]
[White "MatyChess1"]
[Black "GM_LOADING"]
[Result "1-0"]
[WhiteElo "2683"]
[BlackElo "2553"]
[TimeControl "180+1"]
[EndTime "11:17:51 PDT"]
[Termination "MatyChess1 won by resignation"]

1. e4 {[%clk 0:03:00.9]} 1... e5 {[%clk 0:02:59.9]} 2. Nf3 {[%clk 0:03:01.1]}
2... Nc6 {[%clk 0:03:00.4]} 3. Bc4 {[%clk 0:03:01.7]} 3... Nf6 {[%clk
0:02:58.8]} 4. d3 {[%clk 0:03:02.2]} 4... h6 {[%clk 0:02:56.8]} 5. c3 {[%clk
0:03:02.4]} 5... d6 {[%clk 0:02:55.5]} 6. O-O {[%clk 0:03:02.3]} 6... g6 {[%clk
0:02:55.6]} 7. a4 {[%clk 0:02:58.9]} 7... Bg7 {[%clk 0:02:55.2]} 8. a5 {[%clk
0:02:59.6]} 8... a6 {[%clk 0:02:54.9]} 9. Nbd2 {[%clk 0:02:58.1]} 9... O-O
{[%clk 0:02:54.7]} 10. Re1 {[%clk 0:02:58.7]} 10... Kh8 {[%clk 0:02:49.4]} 11.
Nf1 {[%clk 0:02:30.7]} 11... Nh7 {[%clk 0:02:48.4]} 12. Ne3 {[%clk 0:02:20.6]}
12... f5 {[%clk 0:02:43.4]} 13. exf5 {[%clk 0:02:08.4]} 13... gxf5 {[%clk
0:02:44.3]} 14. Nd5 {[%clk 0:02:09.1]} 14... Bd7 {[%clk 0:02:36.8]} 15. g3
{[%clk 0:01:59.9]} 15... Rc8 {[%clk 0:01:50.6]} 16. Nh4 {[%clk 0:01:59.6]} 16...
Qe8 {[%clk 0:01:50.5]} 17. d4 {[%clk 0:01:44.4]} 17... Be6 {[%clk 0:01:30.4]}
18. Qb3 {[%clk 0:01:16.9]} 18... Qf7 {[%clk 0:01:19.2]} 19. Ne3 {[%clk
0:01:00.5]} 19... Bxc4 {[%clk 0:01:18.2]} 20. Qxc4 {[%clk 0:01:01.4]} 20... Qh5
{[%clk 0:00:57.5]} 21. Qe6 {[%clk 0:00:43.6]} 21... Ng5 {[%clk 0:00:52.5]} 22.
Qg6 {[%clk 0:00:33.5]} 22... Nf3+ {[%clk 0:00:30.8]} 23. Kf1 {[%clk 0:00:34]}
23... Qxg6 {[%clk 0:00:25.6]} 24. Nxg6+ {[%clk 0:00:34.9]} 24... Kg8 {[%clk
0:00:24.9]} 25. Nxf8 {[%clk 0:00:34.6]} 25... Nxe1 {[%clk 0:00:24.9]} 26. Ne6
{[%clk 0:00:29.3]} 26... Nd3 {[%clk 0:00:16.6]} 27. Nxf5 {[%clk 0:00:29.2]}
27... Bf6 {[%clk 0:00:08.7]} 28. d5 {[%clk 0:00:24.6]} 28... Ne7 {[%clk
0:00:05.8]} 29. Nxh6+ {[%clk 0:00:23.6]} 29... Kh7 {[%clk 0:00:03.7]} 30. Ng4
{[%clk 0:00:24.1]} 30... Bh8 {[%clk 0:00:04.1]} 31. c4 {[%clk 0:00:22.2]} 31...
e4 {[%clk 0:00:04.6]} 32. Ng5+ {[%clk 0:00:22]} 32... Kg6 {[%clk 0:00:04.6]} 33.
Nxe4 {[%clk 0:00:22.5]} 33... Nxc1 {[%clk 0:00:03.4]} 34. Rxc1 {[%clk
0:00:22.4]} 34... c6 {[%clk 0:00:04.1]} 35. Nxd6 {[%clk 0:00:19.9]} 35... Rd8
{[%clk 0:00:01.9]} 36. Nxb7 {[%clk 0:00:19.9]} 36... Rb8 {[%clk 0:00:02.6]} 37.
Nc5 {[%clk 0:00:11.8]} 37... Rxb2 {[%clk 0:00:02.4]} 38. d6 {[%clk 0:00:12.3]}
38... Nf5 {[%clk 0:00:02.9]} 39. d7 {[%clk 0:00:12.4]} 39... Rd2 {[%clk
0:00:03.6]} 40. Rb1 {[%clk 0:00:04.7]} 40... Rd6 {[%clk 0:00:04]} 41. Rb8 {[%clk
0:00:04.4]} 41... Bd4 {[%clk 0:00:02.2]} 42. d8=Q {[%clk 0:00:04.2]} 42... Rxd8
{[%clk 0:00:02.8]} 43. Rxd8 {[%clk 0:00:04.9]} 43... Bxc5 {[%clk 0:00:03.5]} 44.
Rc8 {[%clk 0:00:03.8]} 44... Ne7 {[%clk 0:00:03.7]} 45. Ra8 {[%clk 0:00:03.6]}
45... Kf5 {[%clk 0:00:04.3]} 46. Ne3+ {[%clk 0:00:02.9]} 46... Ke4 {[%clk
0:00:05]} 47. Rxa6 {[%clk 0:00:03.3]} 47... Kd4 {[%clk 0:00:05.4]} 48. Ra8
{[%clk 0:00:03.9]} 48... Kc3 {[%clk 0:00:02.6]} 49. Re8 {[%clk 0:00:04.4]} 49...
Kb4 {[%clk 0:00:02.3]} 50. Rxe7 {[%clk 0:00:04.3]} 50... Bxe7 {[%clk 0:00:02.4]}
51. a6 {[%clk 0:00:05]} 51... Bc5 {[%clk 0:00:03.2]} 52. h4 {[%clk 0:00:05.4]}
52... Ka5 {[%clk 0:00:04]} 53. h5 {[%clk 0:00:05.8]} 53... Kxa6 {[%clk
0:00:04.8]} 54. Nf5 {[%clk 0:00:05.8]} 54... Bb4 {[%clk 0:00:04.1]} 55. Ke2
{[%clk 0:00:05.5]} 55... Bc3 {[%clk 0:00:04.7]} 56. Kd3 {[%clk 0:00:06.1]} 56...
Bh8 {[%clk 0:00:05.3]} 57. g4 {[%clk 0:00:06.4]} 57... Kb6 {[%clk 0:00:06.1]}
58. g5 {[%clk 0:00:06.9]} 58... Kc5 {[%clk 0:00:06.9]} 59. g6 {[%clk 0:00:07.6]}
59... Kb4 {[%clk 0:00:07.6]} 60. g7 {[%clk 0:00:08.2]} 60... Bxg7 {[%clk
0:00:08.5]} 61. Nxg7 {[%clk 0:00:08.6]} 61... c5 {[%clk 0:00:09.4]} 62. Nf5
{[%clk 0:00:09.5]} 62... Kb3 {[%clk 0:00:10.3]} 63. Ne3 {[%clk 0:00:09.9]} 63...
Kb2 {[%clk 0:00:11.2]} 64. h6 {[%clk 0:00:10.4]} 64... Kb3 {[%clk 0:00:12.1]}
65. h7 {[%clk 0:00:11.3]} 65... Ka3 {[%clk 0:00:13]} 66. h8=Q {[%clk 0:00:12.2]}
66... Ka4 {[%clk 0:00:13.9]} 67. Qb2 {[%clk 0:00:12]} 1-0